bitfinex-derivatives/quotes_ETHF0:USTF0_20250927
["timestamp","ask_amount","ask_price","bid_price","bid_amount"]
[1758968882626,1.22399,3991.4,3991.3,1.221]
[1758968882831,1.33068658,3991.4,3991.3,1.4306]
[1758968883132,0.87999658,3991.4,3991.3,1.4306]
[1758968883334,0.10669658,3991.4,3991.3,2.57253267]
[1758968895244,0.10669658,3991.4,3991.3,5.78033267]
[1758968904243,0.98816,3991.7,3991.6,1.22807]
[1758968904445,1.62698934,3991.7,3991.6,1.47907]
[1758968907842,1.85238934,3991.7,3991.6,1.47907]
[1758968908144,0.45069,3991.4,3991.3,3.2078]
[1758968908348,1.03144,3991.0,3990.9,3.3259]
[1758968908543,1.46112848,3991.0,3990.9,3.5769]
[1758968908744,1.46112848,3991.0,3990.9,3.4588]
[1758968908944,1.46112848,3991.0,3990.9,0.251]
[1758968909442,0.89588,3990.6,3990.5,3.77714528]
[1758968909641,1.32556848,3990.6,3990.5,4.02814528]
[1758968912345,1.32556848,3990.6,3990.5,4.47893528]
[1758968912649,1.32556848,3990.6,3990.5,4.69003528]
[1758968916364,1.22128,3990.6,3990.5,4.69003528]
[1758968917255,1.22128,3990.6,3990.5,4.82453528]
[1758968919264,1.22128,3990.6,3990.5,4.37374528]
[1758968919763,1.22128,3990.6,3990.5,4.82453528]
[1758968920566,1.22128,3990.6,3990.5,1.61673528]
[1758968921768,1.22128,3990.6,3990.5,1.48223528]
[1758968924666,0.7705,3990.6,3990.5,1.48223528]
[1758968926162,0.7705,3990.6,3990.5,1.61673528]
[1758968927269,0.2197,3990.6,3990.5,1.61673528]
[1758968927666,0.3254,3990.9,3990.8,0.3415]
[1758968927965,0.64911261,3990.9,3990.8,1.0284]
[1758968928369,0.87451261,3990.9,3990.8,1.0284]
[1758968929371,0.87451261,3990.9,3990.8,1.47915]
[1758968931169,1.32526261,3990.9,3990.8,1.47915]
[1758968932371,1.32526261,3990.9,3990.8,1.47916]
[1758968932568,1.32526261,3990.9,3990.8,1.0284]
[1758968933275,1.32526261,3990.9,3990.8,1.47916]
[1758968934173,1.32526261,3990.9,3990.8,0.76806]
[1758968934374,1.32526261,3990.9,3990.8,0.3173]
[1758968934575,1.32526261,3990.9,3990.8,0.76806]
[1758968936377,1.86042829,3990.9,3990.8,0.76806]
[1758968937671,1.86042829,3990.9,3990.8,0.3173]
[1758968937871,1.86042829,3990.9,3990.8,0.76806]
[1758968940279,1.40967829,3990.9,3990.8,0.76806]
[1758968940583,1.40967829,3990.9,3990.8,1.30556]
[1758968941177,1.40967829,3990.9,3990.8,0.98286]
[1758968941379,1.86084833,3990.9,3990.8,0.98286]
[1758968944183,1.41009833,3990.9,3990.8,0.98286]
[1758968944482,1.86084833,3990.9,3990.8,1.30556]
[1758968944983,1.86084833,3990.9,3990.8,0.98286]
[1758968946283,1.86084833,3990.9,3990.8,1.14136]
[1758968949386,1.86084833,3990.9,3990.8,0.92656]
[1758968949884,1.86084863,3990.9,3990.8,0.92656]
[1758968950083,1.86084863,3990.9,3990.8,0.70176]
[1758968950386,1.86084863,3990.9,3990.8,0.251]
[1758968951290,1.86084863,3990.9,3990.8,0.70176]
[1758968951588,1.18918,3990.7,3990.6,0.45077]
[1758968951784,1.82877863,3990.7,3990.6,0.91317]
[1758968956587,3.25274175,3990.7,3990.6,0.70177]
[1758968959995,3.25274175,3990.7,3990.6,0.91317]
[1758968960392,1.37799863,3990.7,3990.6,1.12127]
[1758968960595,0.84283295,3990.7,3990.6,1.44257]
[1758968964497,1.29360295,3990.7,3990.6,1.44257]
[1758968965592,0.84283295,3990.7,3990.6,1.44257]
[1758968967298,0.84342782,3990.7,3990.6,1.44257]
[1758968973305,0.84342329,3990.7,3990.6,1.44257]
[1758968975107,0.84342289,3990.7,3990.6,1.44257]
[1758968975705,0.10502289,3990.7,3990.6,1.44257]
[1758968977006,0.43672289,3990.7,3990.6,1.44257]
[1758968981410,0.66302289,3990.7,3990.6,1.44257]
[1758968996506,0.10502289,3990.7,3990.6,1.44257]
[1758968997520,0.41592289,3990.7,3990.6,1.44257]
[1758969000927,0.41613636,3990.7,3990.6,1.44257]
[1758969002318,0.10523636,3990.7,3990.6,1.44257]
[1758969002626,0.41613636,3990.7,3990.6,1.44257]
[1758969003221,0.86690636,3990.7,3990.6,1.44257]
[1758969003431,0.41613636,3990.7,3990.6,1.44257]
[1758969003622,0.10523636,3990.7,3990.6,1.44257]
[1758969004727,0.45076,3990.8,3990.7,1.21247]
[1758969004925,0.86689402,3990.8,3990.7,1.21247]
[1758969006524,0.10523402,3990.8,3990.7,4.13530325]
[1758969006823,1.20049,3991.4,3991.3,0.4448]
[1758969007024,1.84081199,3991.4,3991.3,0.6958]
[1758969007617,1.84081199,3991.4,3991.3,1.1465]
[1758969008326,1.30571484,3991.4,3991.3,1.1465]
[1758969008637,1.84037295,3991.4,3991.3,1.1465]
[1758969009328,1.30571484,3991.4,3991.3,1.1465]
[1758969011427,1.30571484,3991.4,3991.3,0.6958]
[1758969012026,1.30571484,3991.4,3991.3,1.1465]
[1758969013229,0.85502484,3991.4,3991.3,1.4865]
[1758969014329,0.85502484,3991.4,3991.3,4.6943]
[1758969014722,1.30571484,3991.4,3991.3,4.6943]
[1758969018826,0.85502484,3991.4,3991.3,4.6943]
[1758969020533,0.10522484,3991.4,3991.3,4.6943]
[1758969020731,0.3267,3991.7,3991.6,1.22087]
[1758969020935,0.2177,3992.1,3992.0,1.22082]
[1758969021121,0.2177,3992.1,3992.0,2.6143864]
[1758969021320,0.5444,3992.1,3992.0,2.6143864]
[1758969022333,0.5444,3992.1,3992.0,2.81805878]
[1758969025126,0.3103,3992.3,3992.2,0.7836]
[1758969025331,0.3103,3992.3,3992.2,1.4543]
[1758969025534,0.5246,3992.3,3992.2,1.4543]
[1758969026229,0.3103,3992.3,3992.2,1.4543]
[1758969028241,0.13629312,3992.5,3992.4,0.45058]
[1758969028430,0.35059312,3992.5,3992.4,1.12128]
[1758969028631,0.35059312,3992.5,3992.4,1.45428]
[1758969028938,0.87099312,3992.5,3992.4,1.45428]
[1758969029137,1.32156312,3992.5,3992.4,1.45428]
[1758969029841,0.87099312,3992.5,3992.4,1.45428]
[1758969031836,2.01355952,3992.5,3992.4,1.45428]
[1758969032739,2.1149974,3992.5,3992.4,1.45428]
[1758969033134,2.5655674,3992.5,3992.4,1.45428]
[1758969033932,2.1149974,3992.5,3992.4,1.45428]
[1758969034742,2.5655674,3992.5,3992.4,1.45428]
[1758969037842,2.1149974,3992.5,3992.4,1.45428]
[1758969038750,0.972431,3992.5,3992.4,1.45428]
[1758969039047,0.31309312,3992.5,3992.4,1.45428]
[1758969040744,0.00279312,3992.5,3992.4,1.45428]
[1758969046759,0.31309312,3992.5,3992.4,1.45428]
[1758969046957,0.52739312,3992.5,3992.4,1.45428]
[1758969047559,0.62899099,3992.5,3992.4,1.45428]
[1758969048755,0.62899099,3992.5,3992.4,1.20328]
[1758969048958,1.41606099,3992.5,3992.4,0.70158]
[1758969049159,1.41606099,3992.5,3992.4,0.91218]
[1758969049658,1.41606099,3992.5,3992.4,1.45428]
[1758969050157,0.45058,3992.4,3992.3,0.025]
[1758969050361,1.28687787,3992.4,3992.3,0.276]
[1758969050660,1.8203551,3992.4,3992.3,0.276]
[1758969058365,1.8203551,3992.4,3992.3,0.72659]
[1758969058567,1.8203551,3992.4,3992.3,0.94089]
[1758969058568,1.28687787,3992.4,3992.3,0.94089]
[1758969059975,1.28687787,3992.4,3992.3,0.4903]
[1758969060270,1.28687787,3992.4,3992.3,1.0294]
[1758969062577,1.28687787,3992.4,3992.3,1.47999]
[1758969064371,1.07677787,3992.4,3992.3,1.47999]
[1758969065178,0.41189787,3992.4,3992.3,1.47999]
[1758969066381,0.41189787,3992.4,3992.3,1.45499]
[1758969066879,0.64009787,3992.4,3992.3,1.45499]
[1758969067080,1.09067787,3992.4,3992.3,1.45499]
[1758969067478,1.29797787,3992.4,3992.3,1.45499]
[1758969068083,0.84739787,3992.4,3992.3,1.45499]
[1758969069079,1.29797787,3992.4,3992.3,1.45499]
[1758969069784,0.84739787,3992.4,3992.3,1.45499]
[1758969073482,1.29797787,3992.4,3992.3,1.45499]
[1758969073777,0.84739787,3992.4,3992.3,1.45499]
[1758969074385,1.29797787,3992.4,3992.3,1.45499]
[1758969074887,0.84739787,3992.4,3992.3,1.45499]
[1758969076381,0.64009787,3992.4,3992.3,1.45499]
[1758969076579,0.41189787,3992.4,3992.3,1.45499]
[1758969076883,0.10159787,3992.4,3992.3,1.45499]
[1758969079186,0.00279312,3992.5,3992.4,1.20538]
[1758969080387,0.32969312,3992.5,3992.4,1.20538]
[1758969086686,0.00279312,3992.5,3992.4,1.20538]
[1758969087591,0.88127,3993.4,3993.3,0.4472]
[1758969087786,1.06712081,3993.4,3993.3,1.47938]
[1758969088284,1.40182081,3993.4,3993.3,1.47938]
[1758969088793,1.85410724,3993.4,3993.3,1.15167508]
[1758969089289,1.85409313,3993.4,3993.3,0.92697508]
[1758969089489,1.85409313,3993.4,3993.3,0.70447508]
[1758969089890,1.85409313,3993.4,3993.3,0.25399508]
[1758969090392,0.87050311,3993.4,3993.3,1.15167508]
[1758969090988,0.87050311,3993.4,3993.3,4.69017508]
[1758969091389,0.55051643,3993.4,3993.3,4.69017508]
[1758969091592,0.00181643,3993.4,3993.3,4.69017508]
[1758969107510,0.00181643,3993.4,3993.3,4.43917508]
[1758969107710,0.76731643,3993.4,3993.3,3.21079508]
[1758969107914,0.76731643,3993.4,3993.3,3.46179508]
[1758969107915,6.21778643,3993.4,3993.3,3.46179508]
[1758969112317,6.33332413,3993.4,3993.3,3.46179508]
[1758969112507,6.33332413,3993.4,3993.3,3.21079508]
[1758969112712,6.33332413,3993.4,3993.3,3.46179508]
[1758969113418,6.33332413,3993.4,3993.3,3.21079508]
[1758969113614,6.33332413,3993.4,3993.3,2.96179508]
[1758969114624,6.33332413,3993.4,3993.3,2.96480359]
[1758969117523,6.33332413,3993.4,3993.3,2.71380359]
[1758969117829,6.33332413,3993.4,3993.3,2.96480359]
[1758969122521,6.33332413,3993.4,3993.3,0.25400851]
[1758969124420,1.19708,3993.3,3993.2,0.2253]
[1758969124632,1.3126177,3993.3,3993.2,0.4763]
[1758969124823,1.3126177,3993.3,3993.2,0.251]
[1758969125329,1.3126177,3993.3,3993.2,0.2541908]
[1758969126530,1.31265901,3993.3,3993.2,0.2541908]
[1758969126718,0.87746,3992.6,3992.5,3.4282]
[1758969126922,1.31273901,3992.6,3992.5,3.6792]
[1758969127722,1.31273901,3992.6,3992.5,3.68235955]
[1758969128124,1.31273901,3992.6,3992.5,3.65015955]
[1758969128333,1.31273901,3992.6,3992.5,3.21095955]
[1758969128528,1.31273901,3992.6,3992.5,3.46195955]
[1758969128731,1.31273901,3992.6,3992.5,0.25415955]
[1758969129624,1.31273901,3992.6,3992.5,0.00315955]
[1758969129824,1.31273901,3992.6,3992.5,0.25415955]
[1758969130926,1.31273901,3992.6,3992.4,0.2253]
[1758969130927,0.45057,3992.5,3992.4,0.2253]
[1758969131127,0.4506,3992.2,3992.1,3.2078]
[1758969131331,1.32167901,3992.2,3992.1,3.4588]
[1758969132030,1.32167901,3992.2,3992.1,3.46096635]
[1758969132231,1.32167901,3992.2,3992.1,0.25316635]
[1758969134527,1.20616,3991.7,3991.6,1.36463034]
[1758969134728,1.20616,3991.7,3991.6,1.61563034]
[1758969134929,1.32154719,3991.7,3991.6,1.61563034]
[1758969135325,1.32154719,3991.7,3991.6,1.94283034]
[1758969135526,1.32154719,3991.7,3991.6,1.94591848]
[1758969135928,1.32154719,3991.7,3991.6,0.47758814]
[1758969136138,1.32154719,3991.7,3991.6,0.22658814]
[1758969136329,1.32154719,3991.7,3991.6,0.47758814]
[1758969137841,1.32154719,3991.7,3991.6,0.25408814]
[1758969139640,1.32154719,3991.7,3991.6,0.47758814]
[1758969143741,1.31640989,3991.7,3991.6,0.47758814]
[1758969148844,1.31640989,3991.7,3991.6,1.94751848]
[1758969149347,1.31640989,3991.7,3991.6,0.47758814]
[1758969149549,1.31640989,3991.7,3991.6,1.61871848]
[1758969150649,1.31640989,3991.7,3991.6,2.06938848]
[1758969151353,1.31640989,3991.7,3991.6,1.61871848]
[1758969157555,1.31640989,3991.7,3991.6,1.83101848]
[1758969158357,1.31640989,3991.7,3991.6,2.28168848]
[1758969158563,1.31640989,3991.7,3991.6,1.14055814]
[1758969159358,1.31640989,3991.7,3991.6,1.46935814]
[1758969159749,0.02979782,3991.7,3991.6,7.61048848]
[1758969160049,3.65836,3992.6,3992.5,1.28387]
[1758969160256,4.53131071,3992.6,3992.5,2.60990034]
[1758969160455,4.75321071,3992.6,3992.5,2.60990034]
[1758969162152,4.21416,3992.6,3992.5,2.60990034]
[1758969162352,1.00636,3992.6,3992.5,2.60990034]
[1758969163658,0.78442,3992.9,3992.8,0.7672]
[1758969163859,1.54279116,3992.9,3992.8,1.0182]
[1758969164156,1.75359116,3992.9,3992.8,1.0182]
[1758969164657,1.75359116,3992.9,3992.8,1.46874]
[1758969165154,1.75359116,3992.9,3992.8,1.0182]
[1758969166560,1.75359116,3992.9,3992.8,0.6894]
[1758969169254,1.75359116,3992.9,3992.8,1.0182]
[1758969170565,1.21712,3992.9,3992.8,1.0182]
[1758969171065,1.21712,3992.9,3992.8,1.46874]
[1758969171261,0.3339,3992.9,3992.8,1.46874]
[1758969171957,0.89415081,3992.9,3992.8,1.46874]
[1758969173464,0.10973081,3992.9,3992.8,1.46874]
[1758969173965,0.41963081,3992.9,3992.8,1.46874]
[1758969174865,0.64503081,3992.9,3992.8,1.46874]
[1758969176370,0.41963081,3992.9,3992.8,1.46874]
[1758969176665,3.2078,3993.1,3993.0,1.19701]
[1758969176868,3.62316429,3993.1,3993.0,2.61936854]
[1758969177164,0.10546429,3993.1,3993.0,7.68566854]
[1758969177365,0.00181643,3993.4,3993.3,1.19698]
[1758969177571,0.00181643,3993.4,3993.3,2.87033854]
[1758969178670,0.00181643,3993.4,3993.3,3.07225433]
[1758969184770,1.19498643,3993.4,3993.3,0.4309]
[1758969184972,0.45051,3993.0,3992.9,0.2253]
[1758969185178,0.8717,3993.0,3992.9,1.15032]
[1758969185474,0.8717,3993.0,3992.9,0.95002]
[1758969186178,1.32221,3993.0,3992.9,0.95002]
[1758969186474,0.8717,3993.0,3992.9,0.72652]
[1758969186869,1.32221,3993.0,3992.9,0.276]
[1758969187270,0.8717,3993.0,3992.9,0.95002]
[1758969187871,0.8717,3993.0,3992.9,1.13242]
[1758969188180,0.8717,3993.0,3992.9,1.46992]
[1758969188878,1.32221,3993.0,3992.9,1.13242]
[1758969193680,0.8717,3993.0,3992.9,1.13242]
[1758969194480,0.5173,3993.0,3992.9,1.46992]
[1758969194685,0.00181643,3993.4,3992.9,1.46992]
[1758969194686,0.3326,3993.3,3993.2,1.23249]
[1758969194880,0.65513541,3993.3,3993.2,1.48349]
[1758969195377,0.87303541,3993.3,3993.2,1.48349]
[1758969195685,0.43813541,3993.3,3993.2,1.48349]
[1758969195883,0.00181643,3993.4,3993.3,0.45048]
[1758969196079,0.00181643,3993.4,3993.3,1.23248]
[1758969197785,0.00181643,3993.4,3993.3,6.23248]
[1758969197977,0.3326,3994.2,3994.1,1.23239]
[1758969198178,0.65519297,3994.2,3994.1,1.48339]
[1758969198485,0.43819297,3994.2,3994.1,1.48339]
[1758969198879,0.44040801,3994.2,3994.1,1.48339]
[1758969199689,0.10780801,3994.2,3994.1,1.48339]
[1758969200183,0.44040801,3994.2,3994.1,1.48339]
[1758969201274,0.00221504,3994.2,3994.1,1.48339]
[1758969203081,0.31581504,3994.2,3994.1,1.48339]
[1758969205394,0.00221504,3994.2,3994.1,1.48339]
[1758969205597,0.1271,3996.0,3995.4,1.21604]
[1758969205598,0.226,3995.5,3995.4,1.21604]
[1758969205890,3.2078,3995.6,3995.5,0.45023]
[1758969206089,3.2078,3995.6,3995.5,1.34363]
[1758969206485,0.5771,3996.0,3995.9,0.88009]
[1758969206686,0.67816855,3996.0,3995.9,1.46799]
[1758969207594,0.99176855,3996.0,3995.9,1.46799]
[1758969208092,1.44193855,3996.0,3995.9,1.46799]
[1758969208293,1.34216077,3996.0,3995.9,1.46799]
[1758969211700,0.76599077,3996.0,3995.9,1.46799]
[1758969214598,0.54199077,3996.0,3995.9,1.46799]
[1758969215198,0.00239077,3996.0,3995.9,1.46799]
[1758969215501,0.22839077,3996.0,3995.9,1.46799]
[1758969215800,0.54199077,3996.0,3995.9,1.46799]
[1758969219994,0.22839077,3996.0,3995.9,1.46799]
[1758969221288,0.54199077,3996.0,3995.9,1.46799]
[1758969222392,1.21616077,3996.0,3995.9,1.0178]
[1758969222599,0.4502,3995.8,3995.7,0.025]
[1758969222897,1.2138,3995.8,3995.7,0.72621]
[1758969223500,0.7636,3995.8,3995.7,1.26751]
[1758969223695,1.2138,3995.8,3995.7,1.49201]
[1758969225900,1.2138,3995.8,3995.7,1.46701]
[1758969226494,0.99218077,3996.0,3995.9,1.21599]
[1758969226697,1.09182994,3996.0,3995.9,1.21599]
[1758969227000,1.31582994,3996.0,3995.9,1.21599]
[1758969229907,1.44182994,3996.0,3995.9,0.5413]
[1758969230098,1.44182994,3996.0,3995.9,0.2054]
[1758969230298,1.21379,3995.9,3995.8,0.4306]
[1758969230603,1.31343917,3995.9,3995.8,0.7665]
[1758969230800,1.31343917,3995.9,3995.8,1.2167]
[1758969231292,1.31343917,3995.9,3995.8,1.4412]
[1758969232504,0.3136,3997.0,3996.9,1.21587]
[1758969232800,0.67602,3997.4,3997.3,0.7658]
[1758969233007,0.226,3997.4,3997.3,1.0178]
[1758969233404,0.5324,3997.6,3997.5,0.7798]
[1758969233600,1.06428646,3997.6,3997.5,0.9141]
[1758969233800,0.53453704,3997.6,3997.5,2.05293017]
[1758969234306,0.00213704,3997.6,3997.5,2.05293017]
[1758969239105,0.75963704,3997.6,3997.5,0.3298]
[1758969239404,1.20962704,3997.6,3997.5,0.3298]
[1758969240409,1.20962704,3997.6,3997.5,1.00461]
[1758969240705,0.75963704,3997.6,3997.5,1.22981]
[1758969240906,1.20962704,3997.6,3997.5,1.48181]
[1758969241101,0.75963704,3997.6,3997.5,1.48181]
[1758969241909,1.20963704,3997.6,3997.5,1.48181]
[1758969242307,0.75963704,3997.6,3997.5,1.48181]
[1758969242512,1.20963704,3997.6,3997.5,1.48181]
[1758969243014,0.75963704,3997.6,3997.5,1.48181]
[1758969244117,1.20963704,3997.6,3997.5,0.7798]
[1758969244309,1.20963704,3997.6,3997.5,0.92681]
[1758969244715,1.20963704,3997.6,3997.5,1.25661]
[1758969246308,1.20963704,3997.6,3997.5,1.48181]
[1758969246510,0.75963704,3997.6,3997.5,1.48181]
[1758969246705,0.45001,3997.5,3997.4,0.2001]
[1758969246910,1.33251,3997.5,3997.4,0.90212]
[1758969247118,1.33251,3997.5,3997.4,1.12692]
[1758969247417,1.33251,3997.5,3997.4,1.45672]
[1758969249410,1.33251,3997.5,3997.4,1.68192]
[1758969250108,1.20751,3997.5,3997.4,1.68192]
[1758969252916,1.33721,3997.5,3997.4,0.2001]
[1758969253120,2.47604017,3997.5,3997.4,0.4511]
[1758969253416,3.7302,3999.2,3999.1,0.2239]
[1758969253718,0.5224,3999.3,3999.2,1.21652]
[1758969253919,0.7503,3999.3,3999.2,1.21652]
[1758969254311,0.75314661,3999.3,3999.2,1.21919311]
[1758969255516,0.21384661,3999.3,3999.2,1.21919311]
[1758969255721,0.00284661,3999.3,3999.2,1.21919311]
[1758969260414,0.75314661,3999.3,3999.2,1.21919311]
[1758969260622,0.75314661,3999.3,3999.2,1.47319311]
[1758969261618,0.75314661,3999.3,3999.2,1.15579311]
[1758969261809,0.75314661,3999.3,3999.2,0.93039311]
[1758969262016,0.75314661,3999.3,3999.2,1.24779311]
[1758969263022,0.75314661,3999.3,3999.2,1.47319311]
[1758969263730,0.75314661,3999.3,3999.2,2.61202328]
[1758969266521,6.61e-06,3999.3,3999.2,2.61202328]
[1758969266724,3.2078,4000.4,4000.3,1.19939]
[1758969267022,3.7446,4000.4,4000.3,1.45339]
[1758969267724,3.97513884,4000.4,4000.3,1.45339]
[1758969268415,3.21053884,4000.4,4000.3,1.45339]
[1758969269017,0.00273884,4000.4,4000.3,1.45339]
[1758969269326,0.53953884,4000.4,4000.3,1.45339]
[1758969270120,0.00273884,4000.4,4000.3,1.45339]
[1758969270420,0.76733884,4000.4,4000.3,1.19939]
[1758969270613,0.76733884,4000.4,4000.3,1.45339]
[1758969271231,0.22923884,4000.4,4000.3,1.45339]
[1758969271518,0.00273884,4000.4,4000.3,1.45339]
[1758969272425,0.53953884,4000.4,4000.3,2.59222017]
[1758969273117,0.00273884,4000.4,4000.3,2.59222017]
[1758969273322,0.76733884,4000.4,4000.3,1.19939]
[1758969273628,0.76733884,4000.4,4000.3,1.45339]
[1758969274324,0.53953884,4000.4,4000.3,1.45339]
[1758969275032,0.00273884,4000.4,4000.3,6.45339]
[1758969275228,0.00273884,4000.4,4000.3,2.59222017]
[1758969275524,0.00273884,4000.4,4000.3,2.33822017]
[1758969275732,0.00273884,4000.4,4000.3,2.59322017]
[1758969276321,0.00273884,4000.4,4000.3,7.59322017]
[1758969276521,0.00273884,4000.4,4000.3,1.45439]
[1758969277125,0.53953884,4000.4,4000.3,1.45539]
[1758969277317,0.76733884,4000.4,4000.3,1.45539]
[1758969278426,0.00273884,4000.4,4000.3,1.45539]
[1758969278619,0.00273884,4000.4,4000.3,2.33822017]
[1758969278823,0.00273884,4000.4,4000.3,2.59422017]
[1758969280527,0.00273884,4000.4,4000.3,2.33822017]
[1758969280723,0.00273884,4000.4,4000.3,2.59422017]
[1758969281331,0.76733884,4000.4,4000.3,2.59422017]
[1758969281524,0.22923884,4000.4,4000.3,2.33822017]
[1758969281729,0.00273884,4000.4,4000.3,2.59422017]
[1758969281925,3.2078,4002.0,4001.9,0.2182]
[1758969282126,4.1032,4002.0,4001.9,0.258]
[1758969282330,0.7646,4001.6,4001.5,0.98105]
[1758969282530,0.7646,4001.6,4001.5,1.45725]
[1758969282835,0.76670003,4001.6,4001.5,2.59608017]
[1758969283129,0.76670003,4001.6,4001.5,1.19925]
[1758969283330,0.76670003,4001.6,4001.5,1.45725]
[1758969283632,0.22860003,4001.6,4001.5,1.58165]
[1758969284236,0.00210003,4001.6,4001.5,1.58165]
[1758969284535,0.00210003,4001.6,4001.5,2.72048017]
[1758969284737,0.00210003,4001.6,4001.5,2.46248017]
[1758969284938,0.22860003,4001.6,4001.5,2.72048017]
[1758969285240,0.00210003,4001.6,4001.5,2.72048017]
[1758969285736,0.53890003,4001.6,4001.5,2.72048017]
[1758969285934,0.22860003,4001.6,4001.5,2.72048017]
[1758969287329,0.53890003,4001.6,4001.5,2.72048017]
[1758969287837,0.98845003,4001.6,4001.5,2.27093017]
[1758969288036,1.21625003,4001.6,4001.5,1.88853017]
[1758969288236,1.21625003,4001.6,4001.5,0.4794]
[1758969288431,1.34496,4001.5,4001.4,0.2248]
[1758969288638,1.34496,4001.5,4001.4,0.4828]
[1758969289833,1.21416,4001.5,4001.4,1.68207]
[1758969290035,0.2265,4001.5,4001.4,1.68207]
[1758969290234,1.21416,4001.5,4001.4,1.68207]
[1758969290537,0.7646,4001.5,4001.4,1.68207]
[1758969290738,0.2265,4001.5,4001.4,1.68207]
[1758969291042,0.00210003,4001.6,4001.5,1.32366]
[1758969291242,0.22860003,4001.6,4001.5,2.46249017]
[1758969291538,1.21625003,4001.6,4001.5,1.0077]
[1758969291842,1.21625003,4001.6,4001.5,1.45726]
[1758969292428,1.21625003,4001.6,4001.5,0.4794]
[1758969292844,1.21625003,4001.6,4001.5,0.8182]
[1758969293439,0.44956,4001.5,4001.4,0.2248]
[1758969293747,5.08919521,4001.5,4001.4,0.2248]
[1758969293941,0.4496,4001.1,4001.0,3.2078]
[1758969294144,1.2162,4001.1,4001.0,3.6761]
[1758969294338,1.2162,4001.1,4001.0,4.0149]
[1758969294640,1.2162,4001.1,4001.0,0.4683]
[1758969295640,0.44964,4000.8,4000.7,0.3388]
[1758969295941,0.7666,4000.8,4000.7,1.48104]
[1758969299145,1.21624,4000.8,4000.7,1.48104]
[1758969301751,0.5442,4000.8,4000.7,1.48104]
[1758969301953,0.2225,4000.8,4000.7,1.48104]
[1758969302546,0.99382,4001.1,4001.0,1.22302]
[1758969302745,1.52469795,4001.1,4001.0,1.48002]
[1758969303442,1.74709795,4001.1,4001.0,1.48002]
[1758969303639,1.20299795,4001.1,4001.0,1.60482]
[1758969303839,1.52469795,4001.1,4001.0,1.60482]
[1758969305041,0.53087795,4001.1,4001.0,1.60482]
[1758969305242,0.44959,4001.3,4001.2,1.22299]
[1758969305436,0.53107012,4001.4,4001.2,1.47999]
[1758969305642,3.5295,4001.5,4001.4,0.44957]
[1758969305839,3.5295,4001.5,4001.4,1.22297]
[1758969305840,4.28305549,4001.5,4001.4,1.22297]
[1758969307143,4.73261549,4001.5,4001.4,1.22297]
[1758969309246,4.74951549,4001.5,4001.4,1.22297]
[1758969309550,4.97701549,4001.5,4001.4,1.22297]
[1758969310150,4.44596,4001.5,4001.4,1.22297]
[1758969310351,4.97726685,4001.5,4001.4,1.22297]
[1758969310850,4.44596,4001.5,4001.4,1.22297]
[1758969313951,1.23816,4001.5,4001.4,1.22297]
[1758969314149,1.76965639,4001.5,4001.4,1.22297]
[1758969314349,1.23816,4001.5,4001.4,1.22297]
[1758969315957,1.23816,4001.5,4001.2,0.257]
[1758969315958,0.45165003,4001.6,4001.5,1.34136]
[1758969316260,1.5443088,4001.6,4001.5,1.59836]
[1758969316460,0.5336588,4001.6,4001.5,1.59836]
[1758969317059,1.2063088,4001.6,4001.5,1.59836]
[1758969317265,1.0947588,4001.6,4001.5,1.59836]
[1758969317467,0.00210003,4001.6,4001.5,1.59836]
[1758969317665,0.00210003,4001.6,4001.5,6.59836]
[1758969318267,0.56320003,4001.6,4001.5,6.59736]
[1758969319167,0.56320003,4001.6,4001.5,6.34136]
[1758969319364,0.56320003,4001.6,4001.5,6.59736]
[1758969319762,0.56320003,4001.6,4001.5,1.59736]
[1758969319968,1.24025003,4001.6,4001.5,0.7575]
[1758969320170,1.24025003,4001.6,4001.5,1.0135]
[1758969320470,1.24025003,4001.6,4001.5,1.46306]
[1758969321465,1.24025003,4001.6,4001.5,1.0135]
[1758969321860,1.24025003,4001.6,4001.5,1.46306]
[1758969323167,1.24025003,4001.6,4001.5,0.2156]
[1758969323371,1.24025003,4001.6,4001.5,0.4716]
[1758969323575,0.44957,4001.4,4001.3,0.3121]
[1758969323773,0.7691,4001.4,4001.3,1.44398]
[1758969323983,0.547,4001.4,4001.3,1.44398]
[1758969324571,1.21867,4001.4,4001.3,0.7384]
[1758969324776,1.21867,4001.4,4001.3,0.9944]
[1758969325075,1.21867,4001.4,4001.3,1.44398]
[1758969325373,1.21867,4001.4,4001.3,1.23518]
[1758969325970,1.21867,4001.4,4001.3,1.44398]
[1758969326470,0.7691,4001.4,4001.3,1.44398]
[1758969326676,1.21867,4001.4,4001.3,1.44398]
[1758969327074,0.7691,4001.4,4001.3,1.44398]
[1758969327268,0.86487412,4001.4,4001.3,1.44398]
[1758969327469,1.31444412,4001.4,4001.3,1.44398]
[1758969327670,0.86487412,4001.4,4001.3,1.44398]
[1758969329470,1.31444412,4001.4,4001.3,1.44398]
[1758969329670,0.09577412,4001.4,4001.3,2.86026052]
[1758969330472,0.99656,4001.5,4001.4,0.87587]
[1758969330780,0.09579685,4001.5,4001.4,1.18797]
[1758969331474,0.09579685,4001.5,4001.4,4.39577]
[1758969332869,0.00210003,4001.6,4001.5,0.44956]
[1758969333075,0.00210003,4001.6,4001.5,1.57186]
[1758969334368,0.00210003,4001.6,4001.5,6.57186]
[1758969339576,0.54910003,4001.6,4001.5,2.73214052]
[1758969339782,0.54910003,4001.6,4001.5,2.98714052]
[1758969340083,0.00210003,4001.6,4001.5,2.98714052]
[1758969341084,2.44061859,4004.3,4003.0,0.1279]
[1758969341272,0.1352,4005.0,4004.9,0.44918]
[1758969341479,0.1352,4005.5,4004.9,0.44918]
[1758969341480,0.1352,4005.5,4005.0,0.44917]
[1758969341678,0.5692,4005.5,4005.4,4.62408052]
[1758969341875,0.10365772,4006.0,4005.4,4.88434591]
[1758969342080,0.1352,4006.5,4006.4,0.44901]
[1758969342280,0.03375164,4006.5,4006.4,6.21641842]
[1758969342488,0.10365772,4007.0,4006.8,0.44896]
[1758969342686,0.53765772,4007.0,4006.9,3.87171331]
[1758969342880,0.1352,4006.5,4006.4,3.87171331]
[1758969343084,0.434,4006.3,4006.1,0.66391331]
[1758969343383,0.9043,4006.0,4005.9,3.2078]
[1758969343586,0.9043,4006.0,4005.9,3.4658]
[1758969343886,0.9043,4006.0,4005.9,3.4668]